Cogmind - Beta 12 @@@ ROGUE MODE // 2023.09.10 @ 15:49:38 Player: DuckBoy Result: Destroyed by B-75 Beast with Magnetic Acceleration Cannon Performance ------------- Evolutions (2) 1000 Regions Visited (6) 1200 Robots Destroyed (50) 250 Value Destroyed (1695) 1695 Prototype IDs (24) 480 Alien Tech Used (0) 0 Bonus (1004) 1004 TOTAL SCORE: 5629 Bonus ------- High Alert Combat Kills 66 Follower Combat Kills 273 Entered Garrisons 200 Used RIF Installer 500 Friendly Fire -35 Cogmind --------- Core Integrity 0/550 Matter 300/300 Energy 154/160 System Corruption 0% Temperature Warm (109) Movement Walking (190) Ox1 Location -8/Garrison Parts ------- > --- POWER (1) -------- Light Nuclear Core > --- PROPULSION (3) --- Carbon-fiber Leg Carbon-fiber Leg > --- UTILITY (5) ------ Improved Heat Sink Large Storage Unit Makeshift Sensor Array Light Armor Plating Makeshift System Shield > --- WEAPON (2) ------- Advanced Beam Cannon Advanced Beam Cannon > --- INVENTORY (15) --- Light Nuclear Core Light Nuclear Core Light Treads Light Treads Aluminum Leg Thermal Generator Improved Heat Sink Improved Signal Interpreter Improved Signal Interpreter Makeshift System Restoration Module Chronowheel Advanced Beam Cannon Assault Rifle Makeshift Spear Peak State ------------ > --- POWER ------------ Light Nuclear Core > --- PROPULSION ------- Advanced Treads Armored Huge Wheel > --- UTILITY ---------- Improved Heat Sink Large Storage Unit Makeshift Sensor Array Improved Light Armor Plating Makeshift System Shield > --- WEAPON ----------- Heavy Battle Rifle Makeshift Spear > --- INVENTORY -------- Light Nuclear Core Thermal Generator Improved Heat Sink Improved Heat Sink Improved Signal Interpreter Makeshift System Restoration Module Chronowheel Particle Gun Heavy Assault Cannon [Rating: 44] Favorites ----------- Power Light Nuclear Core Engine Light Ion Engine Power Core Light Nuclear Core Propulsion Compact Wheel Treads Advanced Treads Leg Aluminum Leg Wheel Compact Wheel Utility Improved Heat Sink Device Improved Heat Sink Storage Small Storage Unit Hackware Makeshift System Shield Protection Improved Light Armor Plating Weapon Heavy Battle Rifle Energy Gun Small Laser Energy Cannon Advanced Beam Cannon Ballistic Gun Heavy Battle Rifle Ballistic Cannon Heavy Assault Cannon Piercing Weapon Makeshift Spear Build | -11 -10 -10 -10 -9 -8 -8 ------- Run | Jun Mat Min Exi Min Mat Gar Slots Evolved 4 | . . . . . 4 . Power . | . . . . . . . Propulsion 1 | . . . . . 1 . Utility 3 | . . . . . 3 . Weapon . | . . . . . . . Parts Attached 48 | 7 . 1 1 . 18 21 Power 7 | 1 . . 1 . 3 2 Engine 2 | 1 . . 1 . . . Core 5 | . . . . . 3 2 Reactor . | . . . . . . . Propulsion 13 | 2 . . . . 5 6 Treads 3 | . . . . . 2 1 Leg 5 | . . . . . . 5 Wheel 5 | 2 . . . . 3 . Hover . | . . . . . . . Flight . | . . . . . . . Utility 14 | 2 . . . . 6 6 Device 8 | 1 . . . . 3 4 Storage 2 | 1 . . . . 1 . Processor . | . . . . . . . Hackware 1 | . . . . . 1 . Protection 3 | . . . . . 1 2 Artifact . | . . . . . . . Weapon 14 | 2 . 1 . . 4 7 Energy Gun 2 | 1 . . . . . 1 Energy Cannon 5 | . . . . . 1 4 Ballistic Gun 4 | 1 . 1 . . 1 1 Ballistic Cannon 2 | . . . . . 1 1 Launcher . | . . . . . . . Special Weapon . | . . . . . . . Impact Weapon . | . . . . . . . Slashing Weapon . | . . . . . . . Piercing Weapon 1 | . . . . . 1 . Special Melee Weapon . | . . . . . . . Unidentified Prototypes 1 | . . . . . 1 . Parts Lost 12 | . . . . . 3 9 Power 2 | . . . . . 1 1 Propulsion 6 | . . . . . 2 4 Utility 2 | . . . . . . 2 Weapon 2 | . . . . . . 2 Highest Loss Streak 6 | . . . . . 1 6 To Critical Strikes . | . . . . . . . Average Slot Usage (%) 92 | . 100 100 100 100 86 93 Engine 5 | . 14 14 14 14 2 . Core 5 | . . . . . 5 8 Treads 4 | . . . . . 8 3 Leg 5 | . . . . . . 17 Wheel 13 | . 28 28 28 28 9 2 Device 18 | . 14 14 14 14 19 20 Storage 10 | . 14 14 14 14 9 9 Hackware 6 | . . . . . 8 9 Protection 4 | . . . . . 6 6 Energy Gun 5 | . 14 14 14 14 1 2 Energy Cannon 3 | . . . . . 1 8 Ballistic Gun 6 | . 14 14 14 14 4 2 Ballistic Cannon 1 | . . . . . 2 2 Piercing Weapon 2 | . . . . . 5 . Naked Turns . | . . . . . . . Heaviest Build 44 | 12 12 14 15 15 40 44 Greatest Support 42 | 32 32 32 32 32 42 40 Greatest Overweight (x) 4 | . . . . . 1 4 Average Overweight (x) . | . . . . . . . Largest Inventory Capacity 15 | 8 8 8 8 8 15 15 Average Capacity 10 | 7 8 8 8 8 9 15 Most Carried 15 | 5 8 8 8 8 15 15 Average Carried 10 | 2 6 7 7 8 9 14 Final Capacity 15 | 8 8 8 8 8 15 15 Final Carried 15 | 5 8 8 8 8 15 14 Class Distribution -------------------- 49% | Mutant 22% | Derelict-Mutant 19% | Scavenger-Mutant 9% | Commander-Mutant Dominant Class ---------------- Mutant | -10/Materials Mutant | -10/Mines Mutant | -10/Exiles Commander-Mutant | -9/Mines Derelict-Mutant | -8/Materials Scavenger-Mutant | -8/Garrison Resources | -11 -10 -10 -10 -9 -8 -8 ----------- Run | Jun Mat Min Exi Min Mat Gar Matter Collected 1197 | 273 12 10 . 10 539 353 Remotely . | . . . . . . . Salvage Created 1704 | 16 75 . . . 971 642 Parts 97 | 2 9 . . . 57 29 Haulers Intercepted 1 | . . . . . 1 . Recyclers Shooed 2 | . 1 . . . 1 . Parts Field Recycled . | . . . . . . . Retrieved Matter . | . . . . . . . Parts Self-Destructed . | . . . . . . . Prevented . | . . . . . . . Kills | -11 -10 -10 -10 -9 -8 -8 ------- Run | Jun Mat Min Exi Min Mat Gar Combat Hostiles Destroyed 40 | . . . . . 24 16 Melee 4 | . . . . . 4 . Guns 12 | . . . . . 10 2 Cannons 24 | . . . . . 10 14 Classes Destroyed 11 | 1 1 . . . 9 . Builder 1 | . . . . . 1 . Tunneler 1 | 1 . . . . . . Hauler 1 | . . . . . 1 . Recycler 1 | . . . . . 1 . Watcher 6 | . 3 . . . 3 . Swarmer 9 | . . . . . 7 2 Grunt 20 | . . . . . 11 9 Brawler 2 | . . . . . 1 1 Duelist 1 | . . . . . 1 . Sentry 5 | . . . . . 3 2 Hunter 3 | . . . . . 1 2 Best Kill Streak 7 | 1 1 . . . 7 4 Combat Bots Only 5 | . . . . . 5 4 Max Kills in Single Turn 1 | 1 1 . . . 1 1 Gunslinging . | . . . . . . . Exploded . | . . . . . . . Melee 1 | . . . . . 1 . Uniques/NPCs Destroyed . | . . . . . . . Combat | -11 -10 -10 -10 -9 -8 -8 -------- Run | Jun Mat Min Exi Min Mat Gar Damage Taken 3056 | . . . . . 1386 1670 Core 553 | . . . . . 283 270 Absorbed by Shields . | . . . . . . . Core Remaining (%) 100 | 100 . . . 100 . . Volleys Fired 132 | 1 4 . . . 71 56 Largest 2 | 2 2 . . . 2 2 Hottest 136 | 60 60 . . . 73 136 Shots Fired 187 | 2 7 . . . 84 94 Gun 68 | 2 7 . . . 43 16 Cannon 119 | . . . . . 41 78 Launcher . | . . . . . . . Special . | . . . . . . . Kinetic 96 | 1 4 . . . 65 26 Thermal 91 | 1 3 . . . 19 68 Explosive . | . . . . . . . Electromagnetic . | . . . . . . . Robot Hit Streak 11 | 2 4 . . . 11 8 Robot Miss Streak 5 | . 1 . . . 5 3 Penetration Max 1 | . . . . . 1 . Secondary Targets . | . . . . . . . Shots Hit Robots 141 | 2 5 . . . 74 60 Core Hits 63 | 1 4 . . . 36 22 Critical Kills . | . . . . . . . Critical Parts Destroyed 1 | . . . . . 1 . Critical Strikes 6 | . . . . . 4 2 Burn 2 | . . . . . . 2 Destroy 1 | . . . . . 1 . Blast 2 | . . . . . 2 . Impale 1 | . . . . . 1 . Melee Attacks 34 | . . . . . 34 . Impact . | . . . . . . . Slashing . | . . . . . . . Piercing 34 | . . . . . 34 . Sneak Attacks 2 | . . . . . 2 . Combat Hostiles . | . . . . . . . Follow-up Attacks . | . . . . . . . Damage Inflicted 4352 | 24 75 . . . 2571 1682 Guns 942 | 24 75 . . . 652 191 Cannons 2709 | . . . . . 1218 1491 Explosions 141 | . . . . . 141 . Melee 560 | . . . . . 560 . Ramming . | . . . . . . . Kinetic 2603 | 12 40 . . . 1700 851 Thermal 1048 | 12 35 . . . 170 831 Explosive 141 | . . . . . 141 . Electromagnetic . | . . . . . . . Impact . | . . . . . . . Slashing . | . . . . . . . Piercing 560 | . . . . . 560 . Highest Corruption . | . . . . . . . Average Corruption . | . . . . . . . Corruption Purged . | . . . . . . . Corruption Blocked . | . . . . . . . Overload Shots . | . . . . . . . Overflow Damage 154 | . . . . . 109 45 Projectiles 143 | . . . . . 98 45 Explosions 2 | . . . . . 2 . Melee 9 | . . . . . 9 . Knockbacks 11 | . . . . . 7 4 Impact . | . . . . . . . Kinetic 10 | . . . . . 6 4 Secondary 1 | . . . . . 1 . Self-Inflicted Damage . | . . . . . . . Shots . | . . . . . . . Rammed . | . . . . . . . Targets Rammed . | . . . . . . . Kicked . | . . . . . . . Crushed . | . . . . . . . Highest Temperature 313 | . . . . . 288 313 Average Temperature 105 | . . . . . 122 96 Received Heat Transfer 1179 | . . . . . 468 711 Siege Activations . | . . . . . . . Robots Corrupted . | . . . . . . . Combat Hostiles . | . . . . . . . Parts Fried . | . . . . . . . Impact Corruptions . | . . . . . . . Robots Melted . | . . . . . . . Combat Hostiles . | . . . . . . . Parts Melted 3 | . . . . . . 3 Heat Transferred 2126 | 25 75 . . . 361 1665 Parts Sabotaged . | . . . . . . . Parts Stolen . | . . . . . . . Parts Stripped . | . . . . . . . Power Chain Reactions . | . . . . . . . Missiles Intercepted . | . . . . . . . Alert | -11 -10 -10 -10 -9 -8 -8 ------- Run | Jun Mat Min Exi Min Mat Gar Peak Influence 726 | 5 87 33 . 109 395 726 Initial 162 | . 3 33 . . 42 162 Average 256 | 1 33 33 . 83 186 480 Maximum Alert Level 3 | . . . . . 1 3 Low Security (%) 49 | 100 100 100 . 100 55 12 Level 1 26 | . . . . . 44 16 Level 2 18 | . . . . . . 55 Level 3 5 | . . . . . . 15 Level 4 . | . . . . . . . Level 5 . | . . . . . . . High Security . | . . . . . . . Max Security . | . . . . . . . Squads Dispatched 5 | . . . . . 5 . Investigation 1 | . . . . . 1 . Extermination . | . . . . . . . Reinforcement 1 | . . . . . 1 . Assault . | . . . . . . . Garrison 3 | . . . . . 3 . Intercept . | . . . . . . . Searches Triggered . | . . . . . . . Construction Impeded . | . . . . . . . Haulers Reinforced . | . . . . . . . Active Scanning Responses . | . . . . . . . Cargo Convoy Interrupts . | . . . . . . . Stealth | -11 -10 -10 -10 -9 -8 -8 --------- Run | Jun Mat Min Exi Min Mat Gar Distress Signals 3 | . 1 . . . 2 . Communications Jammed . | . . . . . . . Distress Signals . | . . . . . . . Times Spotted 84 | . 4 . . 4 50 26 Peak Tracking Total 7 | . 2 . . 4 6 7 Tactical Retreats 13 | . 1 . . . 10 2 Traps | -11 -10 -10 -10 -9 -8 -8 ------- Run | Jun Mat Min Exi Min Mat Gar Traps Triggered 5 | . . . . . 1 4 Indirectly . | . . . . . . . Trap Hack Attempts . | . . . . . . . Triggered . | . . . . . . . Disarmed . | . . . . . . . Reprogrammed . | . . . . . . . Reused . | . . . . . . . Traps Extracted . | . . . . . . . Installed . | . . . . . . . Triggered . | . . . . . . . Machines | -11 -10 -10 -10 -9 -8 -8 ---------- Run | Jun Mat Min Exi Min Mat Gar Machines Disabled 1 | . . . . . 1 . Max in Single Turn 1 | . . . . . 1 . Machines Repaired . | . . . . . . . Machines Sabotaged . | . . . . . . . Overloaded Fab Kills . | . . . . . . . Hacking | -11 -10 -10 -10 -9 -8 -8 --------- Run | Jun Mat Min Exi Min Mat Gar Machines Accessed 20 | . 4 . 5 1 8 2 Terminals 13 | . 3 . . 1 7 2 Fabricators . | . . . . . . . Repair Stations . | . . . . . . . Recycling Units 1 | . 1 . . . . . Scanalyzers . | . . . . . . . Garrison Access 1 | . . . . . 1 . Total Hacks 108 | . 14 . 50 2 37 5 Successful 75 | . 8 . 50 1 14 2 Failed 33 | . 6 . . 1 23 3 Catastrophic 2 | . . . . . 2 . Database Lockouts . | . . . . . . . Manual 46 | . 14 . 3 . 27 2 Terminals 54 | . 11 . . 2 36 5 Fabricators . | . . . . . . . Repair Stations . | . . . . . . . Recycling Units 3 | . 3 . . . . . Scanalyzers . | . . . . . . . Garrison Access 1 | . . . . . 1 . Terminal Hacks 60 | . 1 . 50 1 6 2 Record 50 | . . . 49 . 1 . Part Schematic 1 | . . . . . 1 . Open Door 1 | . . . . . . 1 Branch Access Points 1 | . 1 . . . . . Terminal Index 1 | . . . . . 1 . Alert Level 1 | . . . . . 1 . Unreport Threat 2 | . . . . . 2 . Zone Layout 1 | . . . . 1 . . Garrison Registry 1 | . . . . . . 1 EX-Prototype ID Bank 1 | . . . 1 . . . Fabricator Hacks . | . . . . . . . Repair Station Hacks . | . . . . . . . Recycling Unit Hacks . | . . . . . . . Scanalyzer . | . . . . . . . Garrison Access Hacks 1 | . . . . . 1 . Unlock Access 1 | . . . . . 1 . Unauthorized Hacks 14 | . 7 . . . 7 . Terminals 13 | . 6 . . . 7 . Track 1 | . 1 . . . . . Assimilate 2 | . . . . . 2 . Botnet 6 | . 2 . . . 4 . Disrupt 1 | . 1 . . . . . Operators 3 | . 2 . . . 1 . Fabricators . | . . . . . . . Repair Stations . | . . . . . . . Recycling Units 1 | . 1 . . . . . Recyclers 1 | . 1 . . . . . Scanalyzers . | . . . . . . . Garrison Access . | . . . . . . . Data Cores Recovered . | . . . . . . . Used . | . . . . . . . Hacking Detections 13 | . 3 . . 1 7 2 Full Trace Events . | . . . . . . . Feedback Events . | . . . . . . . Feedback Blocked . | . . . . . . . Robot Schematics Acquired . | . . . . . . . Robots Built . | . . . . . . . Authchips . | . . . . . . . Time . | . . . . . . . Total Robot Build Rating . | . . . . . . . Part Schematics Acquired 1 | . . . . . 1 . Parts Built . | . . . . . . . Authchips . | . . . . . . . Time . | . . . . . . . Total Part Build Rating . | . . . . . . . Parts Repaired . | . . . . . . . Time . | . . . . . . . Parts Recycled . | . . . . . . . Recycled Matter . | . . . . . . . Retrieved Matter . | . . . . . . . Retrieved Components . | . . . . . . . Parts Scanalyzed . | . . . . . . . Part Schematics Acquired . | . . . . . . . Parts Damaged . | . . . . . . . Bothacking | -11 -10 -10 -10 -9 -8 -8 ------------ Run | Jun Mat Min Exi Min Mat Gar Used RIF Installer 1 | . . . . . . 1 Robots Hacked . | . . . . . . . Non-combat . | . . . . . . . Combat . | . . . . . . . Robot Hacks Applied . | . . . . . . . Relay Couplers Released . | . . . . . . . Fabnet Peak Effective % . | . . . . . . . Robots Rewired 8 | . . . 4 . . 4 Allies Hacked . | . . . . . . . Hacks Repelled . | . . . . . . . Allies | -11 -10 -10 -10 -9 -8 -8 -------- Run | Jun Mat Min Exi Min Mat Gar Total Allies 9 | . . . 4 . 1 4 Largest Group 4 | . . . 4 4 4 4 Highest-Rated Group 129 | . . . 58 58 58 129 Highest-Rated Ally 39 | . . . 21 21 21 39 Total Orders 1 | . . . . . 1 . STAY 1 | . . . . . 1 . Ally Attacks 63 | . . . . 13 6 44 Total Damage 824 | . . . . 165 52 607 Kills 13 | . . . . 4 1 8 Allies Corrupted 1 | . . . . . . 1 Allies Melted . | . . . . . . . Intel | -11 -10 -10 -10 -9 -8 -8 ------- Run | Jun Mat Min Exi Min Mat Gar Robot Analysis Total . | . . . . . . . Derelict Logs Recovered . | . . . . . . . Drone Launches . | . . . . . . . Drone Recoveries . | . . . . . . . Exploration | -11 -10 -10 -10 -9 -8 -8 ------------- Run | Jun Mat Min Exi Min Mat Gar Turns Passed 4024 | 81 255 193 581 148 1612 1154 Spaces Moved 2642 | 61 230 180 535 138 970 528 Core 1 | 1 . . . . . . Treads 104 | . . . . . 87 17 Legs 342 | . . . . . . 342 Wheels 2195 | 60 230 180 535 138 883 169 Hover . | . . . . . . . Flight . | . . . . . . . Fastest Speed 50 | 50 100 100 100 100 90 115 Average Speed 119 | 99 100 100 100 100 116 167 Slowest Speed 400 | 100 100 100 100 100 240 400 Overloaded Moves . | . . . . . . . Propulsion Burnouts . | . . . . . . . Robots Hopped . | . . . . . . . Cave-ins Triggered . | . . . . . . . Exploration Rate (%) 47 | 5 45 35 93 34 65 56 Regions Visited 6 Branch Regions 3 Pre-discovered Areas 2 | . . . 1 1 . . Known Exits Taken 2 | . 1 . . . 1 . Unknown Exits Taken 4 | 1 . 1 1 1 . . Scrap Searched 2 | . . 1 . 1 . . Spaces Dug 10 | . . . . . 10 . Terrain Destroyed 39 | . . . . . 33 6 Melee 10 | . . . . . 10 . Projectile 26 | . . . . . 20 6 AOE 3 | . . . . . 3 . Terrain Rammed . | . . . . . . . Walls Destroyed . | . . . . . . . Machines Disabled . | . . . . . . . Actions | -11 -10 -10 -10 -9 -8 -8 --------- Run | Jun Mat Min Exi Min Mat Gar Total 3267 | 76 248 194 583 148 1321 697 Wait 278 | 2 12 9 6 11 197 41 Move 2636 | 60 229 179 534 137 969 528 Hop . | . . . . . . . Pick Up 39 | 6 3 2 5 . 17 6 Fast Attach 19 | 6 . . . . 5 8 Attach 17 | 1 . . . . 9 7 Detach 2 | . . . . . 1 1 Swap 12 | . . 1 1 . 4 6 Drop 33 | . . 3 6 . 14 10 Fire 132 | 1 4 . . . 71 56 Melee 34 | . . . . . 34 . Ram . | . . . . . . . Kick . | . . . . . . . Crush . | . . . . . . . Escape Stasis 20 | . . . . . . 20 Rewire 45 | . . . 31 . . 14 Trap . | . . . . . . . Miscellaneous . | . . . . . . . Route ------- -11/Junkyard -10/Materials (discovered 3 exits: [*Mat] / *Min x2) -10/Mines -10/Exiles (discovered 2 exits: *Min x2) -9/Mines -8/Materials (discovered 3 exits: [*Fac x2] / Gar) -8/Garrison (discovered 4 exits: [*Mat x4]) History --------- Turn | Location | Event 29 | -11/Junkyard | Discovered new exit (range 15) 82 | -11/Junkyard | Entered Materials 155 | -10/Materials | Discovered new exit (range 14) 214 | -10/Materials | Discovered new exit (range 12) 301 | -10/Materials | Build established: Mutant 303 | -10/Materials | Discovered new exit (range 15) 331 | -10/Materials | Identified exit to Mines 337 | -10/Materials | Entered Mines 425 | -10/Mines | A weapon hastily lodged in a ceiling crevice suddenly fell to the ground 495 | -10/Mines | Discovered new exit (range 11) 526 | -10/Mines | Deemed a non-threat by the Exiles lab entrance 530 | -10/Mines | Entered Exiles 530 | -10/Exiles | Found Exiles lab destroyed 547 | -10/Exiles | Discovered new exit (range 14) 721 | -10/Exiles | Opened EX-Vault 730 | -10/Exiles | Found Chronowheel 821 | -10/Exiles | Learned location of Zion (-6) 1091 | -10/Exiles | Discovered new exit (range 14) 1111 | -10/Exiles | Entered Mines 1111 | -9/Mines | Accompanied by 4 allies 1112 | -9/Mines | Learned location of Storage (-9) 1174 | -9/Mines | Build established: Commander-Mutant 1210 | -9/Mines | Discovered new exit (range 9) 1259 | -9/Mines | Entered Materials 1259 | -8/Materials | Accompanied by 4 allies 1259 | -8/Materials | Evolved 4 slots: Propulsion x1, Utility x3 1392 | -8/Materials | Garrison activated, responded to threat 1420 | -8/Materials | Identified exit to Garrison 1806 | -8/Materials | Build established: Mutant 1945 | -8/Materials | Discovered new exit (range 14) 2217 | -8/Materials | Build established: Derelict-Mutant 2407 | -8/Materials | Discovered new exit (range 6) 2592 | -8/Materials | Core integrity fell below 50% 2844 | -8/Materials | Build established: Mutant 2871 | -8/Materials | Entered Garrison 2930 | -8/Garrison | Triggered checkpoint 3092 | -8/Garrison | Triggered checkpoint 3200 | -8/Garrison | Lost 6 parts (1p2n2u1w) 3422 | -8/Garrison | Discovered new exit (range 8) 3549 | -8/Garrison | Build established: Scavenger-Mutant 3586 | -8/Garrison | Triggered checkpoint 3677 | -8/Garrison | Discovered new exit (range 62) 3677 | -8/Garrison | Discovered new exit (range 27) 3677 | -8/Garrison | Discovered new exit (range 79) 3677 | -8/Garrison | Discovered new exit (range 42) 3782 | -8/Garrison | Triggered checkpoint 3824 | -8/Garrison | Triggered checkpoint 3901 | -8/Garrison | Installed Relay Interface Framework 4009 | -8/Garrison | Spotted B-75 Beast 4013 | -8/Garrison | Core integrity fell below 20% 4025 | -8/Garrison | Destroyed by B-75 Beast with Magnetic Acceleration Cannon Last Messages --------------- 03841_ S-10 Pest destroyed. Initiating installation procedure... 03901_ Relay Interface Framework installed. 04012_ B-75 Beast springs to life. 04020_ HV Slug penetrates Wall. 04020_ HV Slug penetrates B-75 Beast. 04020_ B-75 Beast suffers critical hit (Destroy). 04020_ Destroyed Imp. Medium Treads. 04020_ HV Slug penetrates B-75 Beast. 04021_ Aluminum Leg destroyed. 04022_ HV Slug penetrates Wall. 04022_ HV Slug penetrates B-75 Beast. 04022_ B-75 Beast suffers critical hit (Destroy). 04022_ Destroyed Imp. Medium Treads. 04023_ HV Slug penetrates B-75 Beast. 04023_ B-75 Beast suffers critical hit (Destroy). 04023_ Destroyed Imp. Cooling System. 04023_ HV Slug penetrates B-75 Beast. 04024_ HV Slug penetrates Wall. 04025_ Wall collapses. Map ----- +----------------------------------------------------+ | ????????????????????????????????# | | ????????????????????????????????### ## ## # | | ????????????????????????########### ## ## # | | ????????????????????????# | | ????????????????????????# %[ | | ????????????????????????# ###+#### =%% %% | | ????????????????????????# #?# #??## ## =% ###### | | ??????#####?????????????#^^#?# #???# ## =%=#????? | | ??????#"T"###############^^### ##### #######????? | | ??????#" + + #??????????? | | ??????######### ######### ##### ### #??????????? | | ????????????# " ######### #???# #?# #??????????? | | ????????????# " + ## #####+### #??????????? | | ????????????# " ###### ## #??????????? | | ????????????### #????# ## #??????????? | | ??????????????# #????# ## ############??????????? | | ??????????????# #????# ## #?????????????????????? | | ??????????????# ###### ## #?????????????????????? | | ??????????????# + + #?????????????????????? | | ??????????????### ##### #?????????????????????? | | ???????????????#"""""#??# #?????????????????????? | | ???????????????#######??# #?????????????????????? | | ????????????????????????# #?????????????????????? | | ????????????????????????# #?????????????????????? | | ????????????????????????# #?????????????????????? | | ???????????????##########@ #?????????????????????? | | ???????????????# #?????????????????????? | | ???????????????# h h#?????????????????????? | | ???????????????# < #####;;;#?????????????????????? | | ???????????????# #???## #?????????????????????? | | ???????????????#####??###BB###???????????????????? | | ????????????????????### #BB# ###?????????????????? | | ????????????????????#"" #%%# ""#?????????????????? | | ????????????????????#"! # # !"#?????????????????? | | ????????????????????#"! # #^!"#?????????????????? | | ????????????????????#"^ # # ="#?????????????????? | | ????????????????????#"/ # # ]"#?????????????????? | | ????????????????????#"! # # ^"#?????????????????? | | ????????????????????#"! # # |"#?????????????????? | | ????????????????????#"" ""#?????????????????? | | ????????????????????#"""[!]!"""#?????????????????? | | ????????????????????#""""""""""#?????????????????? | | ????????????????????############?????????????????? | | ?????????????????????????????????????????????????? | | ?????????????????????????????????????????????????? | | ?????????????????????????????????????????????????? | | ?????????????????????????????????????????????????? | | ?????????????????????????????????????????????????? | | ?????????????????????????????????????????????????? | | | +----------------------------------------------------+ Best States ------------- Heat Dissipation 59 Energy Generation 15 Energy Capacity 170 Matter Stores 300 Matter Capacity 300 Sight Range 16 Robot Scan Range 19 Terrain Scan Range 16 Terrain Scan Density 10 Armor Coverage 150 Evasion (%) 55 Recoil Reduction 1 Defensive Hacking 11 Item Schematics ----------------- Hacking Suite | -8/Materials | Hacked Robot Schematics ------------------ None Fabricated ------------ Nothing Alien Tech Used ----------------- None Achievements -------------- None Challenges ------------ None Game ------ Seed IonicBurstNanosword Manual? 0 Play Time 00:42:16 Cumulative 266.9 hours Start 2023.09.10 @ 15:06:04 End 2023.09.10 @ 15:49:38 Sessions 1 Manual Loads 0 Difficulty Rogue Special Mode None Game No. 185 Rogue 182 Adventurer 3 Explorer 0 Win Type - Total 4 Types 3/0/1/0/0/0/0/0/0 Lore% 70 Gallery% 74 Achievement% 63 Wizard Run 0 Options --------- ASCII 0 Keyboard 0 Movement Numpad Keybinds 0 Fullscreen 1 Font 18/SmallcapsGlow Map View 76x50 Tactical HUD 1 Map Filters NONE Filters NONE Steam 1 RUN: 596684ca-4360-4beb-88bd-f196eba341da